[Event "FIDE Women World Blitz 2021"]
[Site "Warsaw"]
[Date "2021.12.29"]
[Round "9.34"]
[White "Badelka, Olga"]
[Black "Semenova, Elena"]
[Result "1-0"]
[ECO "E40"]
[WhiteElo "2188"]
[BlackElo "2233"]
[Annotator "NA"]
[PlyCount "103"]
[EventDate "2021.12.29"]
[EventType "swiss"]
[EventCountry "POL"]
[Tiebreak "Cut1 Buchholz"]
[SourceTitle "playchess.com"]
[Source "ChessBase"]
[SourceQuality "1"]
[TimeControl "180+2"]

1. d4 {[%emt 0:00:01]} Nf6 {[%emt 0:00:00]} 2. c4 {[%emt 0:00:01]} e6 {[%emt 0:
00:01]} 3. Nc3 {[%emt 0:00:00]} Bb4 {[%emt 0:00:00]} 4. e3 {[%emt 0:00:01]} c6
{[%emt 0:00:06]} 5. Nge2 {[%emt 0:00:15]} d5 {[%emt 0:00:02]} 6. a3 {[%emt 0:
00:03]} Ba5 {[%emt 0:00:00]} 7. b4 {[%emt 0:00:06]} Bc7 {[%emt 0:00:01]} 8. Ng3
{[%emt 0:00:07]} O-O {[%emt 0:00:10]} 9. Bb2 {[%emt 0:00:01]} Nbd7 {[%emt 0:00:
11]} 10. cxd5 {[%emt 0:00:05]} cxd5 {[%emt 0:00:08]} 11. Bd3 {[%emt 0:00:05]}
Bd6 {[%emt 0:00:20]} 12. O-O {[%emt 0:00:04]} a6 {[%emt 0:00:06]} 13. e4 {
[%emt 0:00:14]} dxe4 {[%emt 0:00:05]} 14. Ngxe4 {[%emt 0:00:04]} Nxe4 {[%emt 0:
00:11]} 15. Nxe4 {[%emt 0:00:12]} Be7 {[%emt 0:00:01]} 16. Nc5 {[%emt 0:00:10]}
Nf6 {[%emt 0:00:06]} 17. Qf3 {[%emt 0:00:13]} Qd5 {[%emt 0:00:01]} 18. Qxd5 {
[%emt 0:00:09]} Nxd5 {[%emt 0:00:19]} 19. Rfc1 {[%emt 0:00:02]} b6 {[%emt 0:00:
07]} 20. Na4 {[%emt 0:00:07]} Bd7 {[%emt 0:00:01]} 21. Nc3 {[%emt 0:00:04]}
Nxc3 {[%emt 0:00:32]} 22. Rxc3 {[%emt 0:00:01]} b5 {[%emt 0:00:10]} 23. Rc7 {
[%emt 0:00:11]} Rfd8 {[%emt 0:00:01]} 24. Be4 {[%emt 0:00:06]} Rab8 {[%emt 0:
00:03]} 25. Rac1 {[%emt 0:00:10]} Bd6 {[%emt 0:00:09]} 26. Ra7 {[%emt 0:00:02]}
Bc8 {[%emt 0:00:21]} 27. g3 {[%emt 0:00:07]} Kf8 {[%emt 0:00:06]} 28. d5 {
[%emt 0:00:05]} e5 {[%emt 0:00:06]} 29. Rc6 {[%emt 0:00:22]} f6 {[%emt 0:00:13]
} 30. Rc1 {[%emt 0:00:11]} f5 {[%emt 0:00:05]} 31. Bf3 {[%emt 0:00:08]} Bb7 {
[%emt 0:00:08]} 32. Re1 {[%emt 0:00:07]} e4 {[%emt 0:00:02]} 33. Bg2 {[%emt 0:
00:02]} Bxd5 {[%emt 0:00:02]} 34. Rxg7 {[%emt 0:00:04]} Bf7 {[%emt 0:00:03]}
35. Rxh7 {[%emt 0:00:02]} Ke7 {[%emt 0:00:01]} 36. Rh6 {[%emt 0:00:04]} Rbc8 {
[%emt 0:00:02]} 37. Bf6+ {[%emt 0:00:02]} Kd7 {[%emt 0:00:03]} 38. Bxd8 {
[%emt 0:00:02]} Rxd8 {[%emt 0:00:00]} 39. Rd1 {[%emt 0:00:02]} Ke7 {[%emt 0:00:
01]} 40. Bh3 {[%emt 0:00:05]} Be6 {[%emt 0:00:00]} 41. Rh7+ {[%emt 0:00:05]}
Kf6 {[%emt 0:00:02]} 42. Ra7 {[%emt 0:00:02]} Bb3 {[%emt 0:00:04]} 43. Rd2 {
[%emt 0:00:03]} Ke5 {[%emt 0:00:01]} 44. Rxa6 {[%emt 0:00:02]} Rd7 {[%emt 0:00:
02]} 45. Bxf5 {[%emt 0:00:05]} Kxf5 {[%emt 0:00:01]} 46. Rdxd6 {[%emt 0:00:03]}
Rc7 {[%emt 0:00:01]} 47. h3 {[%emt 0:00:02]} Rc1+ {[%emt 0:00:03]} 48. Kh2 {
[%emt 0:00:01]} Bd1 {[%emt 0:00:01]} 49. g4+ {[%emt 0:00:02]} Ke5 {[%emt 0:00:
00]} 50. Re6+ {[%emt 0:00:03]} Kd4 {[%emt 0:00:02]} 51. Rad6+ {[%emt 0:00:02]}
Kc3 {[%emt 0:00:00]} 52. Rxe4 {[%emt 0:00:02]} 1-0

[Event "FIDE Women World Blitz 2021"]
[Site "Warsaw"]
[Date "2021.12.29"]
[Round "9.35"]
[White "Serikbay, Assel"]
[Black "Paramzina, Anastasya"]
[Result "1-0"]
[ECO "D78"]
[WhiteElo "2237"]
[BlackElo "2260"]
[Annotator "NA"]
[PlyCount "82"]
[EventDate "2021.12.29"]
[EventType "swiss"]
[EventCountry "POL"]
[Tiebreak "Cut1 Buchholz"]
[SourceTitle "playchess.com"]
[Source "ChessBase"]
[SourceQuality "1"]
[TimeControl "180+2"]

1. d4 {[%emt 0:00:01]} Nf6 {[%emt 0:00:01]} 2. c4 {[%emt 0:00:02]} g6 {[%emt 0:
00:01]} 3. g3 {[%emt 0:00:01]} c6 {[%emt 0:00:01]} 4. Bg2 {[%emt 0:00:02]} d5 {
[%emt 0:00:01]} 5. Nf3 {[%emt 0:00:02]} Bg7 {[%emt 0:00:01]} 6. O-O {[%emt 0:
00:02]} O-O {[%emt 0:00:02]} 7. Nc3 {[%emt 0:00:02]} dxc4 {[%emt 0:00:05]} 8.
a4 {[%emt 0:00:05]} Nbd7 {[%emt 0:00:31]} 9. e3 {[%emt 0:00:32]} Qc7 {[%emt 0:
00:19]} 10. Qe2 {[%emt 0:00:10]} e5 {[%emt 0:00:05]} 11. Qxc4 {[%emt 0:00:06]}
exd4 {[%emt 0:00:30]} 12. Nxd4 {[%emt 0:00:18]} Ne5 {[%emt 0:00:19]} 13. Qe2 {
[%emt 0:00:01]} a6 {[%emt 0:00:04]} 14. f4 {[%emt 0:00:07]} Ned7 {[%emt 0:00:
05]} 15. Kh1 {[%emt 0:00:26]} c5 {[%emt 0:00:01]} 16. Nc2 {[%emt 0:00:05]} Nb6
{[%emt 0:00:08]} 17. e4 {[%emt 0:00:05]} Bg4 {[%emt 0:00:02]} 18. Qf2 {[%emt 0:
00:02]} Nfd7 {[%emt 0:00:11]} 19. Ne3 {[%emt 0:00:09]} Bd4 {[%emt 0:00:01]} 20.
Qc2 {[%emt 0:00:04]} Be6 {[%emt 0:00:16]} 21. a5 {[%emt 0:00:01]} Nc4 {[%emt 0:
00:03]} 22. Ncd5 {[%emt 0:00:35]} Nxe3 {[%emt 0:00:06]} 23. Bxe3 {[%emt 0:00:
01]} Qd8 {[%emt 0:00:18]} 24. Bxd4 {[%emt 0:00:13]} cxd4 {[%emt 0:00:03]} 25.
Qd3 {[%emt 0:00:05]} Nc5 {[%emt 0:00:05]} 26. Qxd4 {[%emt 0:00:19]} Nb3 {
[%emt 0:00:13]} 27. Qc3 {[%emt 0:00:09]} Bxd5 {[%emt 0:00:01]} 28. Rad1 {
[%emt 0:00:00]} Qxa5 {[%emt 0:00:08]} 29. Qxa5 {[%emt 0:00:04]} Nxa5 {[%emt 0:
00:01]} 30. Rxd5 {[%emt 0:00:02]} Nc4 {[%emt 0:00:01]} 31. Rc1 {[%emt 0:00:06]}
b5 {[%emt 0:00:04]} 32. Rd7 {[%emt 0:00:03]} Nxb2 {[%emt 0:00:03]} 33. e5 {
[%emt 0:00:01]} Rac8 {[%emt 0:00:01]} 34. Rcc7 {[%emt 0:00:02]} a5 {[%emt 0:00:
08]} 35. h3 {[%emt 0:00:06]} Rxc7 {[%emt 0:00:03]} 36. Rxc7 {[%emt 0:00:01]} a4
{[%emt 0:00:01]} 37. Bc6 {[%emt 0:00:01]} b4 {[%emt 0:00:04]} 38. Rb7 {[%emt 0:
00:01]} a3 {[%emt 0:00:04]} 39. Bd5 {[%emt 0:00:01]} Nd3 {[%emt 0:00:02]} 40.
Bc4 {[%emt 0:00:01]} Rd8 {[%emt 0:00:02]} 41. Kg2 {[%emt 0:00:02]} Rd4 {
[%emt 0:00:09]} 1-0

[Event "FIDE Women World Blitz 2021"]
[Site "Warsaw"]
[Date "2021.12.29"]
[Round "9.36"]
[White "Zawadzka, Jolanta"]
[Black "Kurmangaliyeva, Liya"]
[Result "0-1"]
[ECO "B33"]
[WhiteElo "2429"]
[BlackElo "2222"]
[Annotator "NA"]
[PlyCount "170"]
[EventDate "2021.12.29"]
[EventType "swiss"]
[EventCountry "POL"]
[Tiebreak "Cut1 Buchholz"]
[SourceTitle "playchess.com"]
[Source "ChessBase"]
[SourceQuality "1"]
[TimeControl "180+2"]

1. e4 {[%emt 0:00:01]} c5 {[%emt 0:00:01]} 2. Nf3 {[%emt 0:00:01]} Nc6 {
[%emt 0:00:03]} 3. d4 {[%emt 0:00:03]} cxd4 {[%emt 0:00:02]} 4. Nxd4 {[%emt 0:
00:01]} Nf6 {[%emt 0:00:01]} 5. Nc3 {[%emt 0:00:01]} e5 {[%emt 0:00:01]} 6.
Ndb5 {[%emt 0:00:03]} d6 {[%emt 0:00:01]} 7. Na3 {[%emt 0:00:01]} a6 {[%emt 0:
00:06]} 8. Nc4 {[%emt 0:00:02]} Be6 {[%emt 0:00:12]} 9. Ne3 {[%emt 0:00:03]}
Be7 {[%emt 0:00:18]} 10. Bd3 {[%emt 0:00:05]} O-O {[%emt 0:00:12]} 11. O-O {
[%emt 0:00:02]} Rc8 {[%emt 0:00:03]} 12. a3 {[%emt 0:00:06]} b5 {[%emt 0:00:07]
} 13. Ncd5 {[%emt 0:00:16]} Na5 {[%emt 0:00:19]} 14. Qe2 {[%emt 0:00:14]} Nb7 {
[%emt 0:00:11]} 15. c3 {[%emt 0:00:05]} Nc5 {[%emt 0:00:03]} 16. Bc2 {[%emt 0:
00:10]} Ncxe4 {[%emt 0:00:23]} 17. Nxf6+ {[%emt 0:00:24]} Nxf6 {[%emt 0:00:02]}
18. Nf5 {[%emt 0:00:02]} Bc4 {[%emt 0:00:14]} 19. Bd3 {[%emt 0:00:26]} Qd7 {
[%emt 0:00:01]} 20. Bxc4 {[%emt 0:00:28]} Rxc4 {[%emt 0:00:02]} 21. Ne3 {
[%emt 0:00:04]} Rcc8 {[%emt 0:00:06]} 22. Rd1 {[%emt 0:00:01]} Qe6 {[%emt 0:00:
06]} 23. Qf3 {[%emt 0:00:05]} Rfd8 {[%emt 0:00:07]} 24. Nf5 {[%emt 0:00:18]}
Bf8 {[%emt 0:00:04]} 25. Bg5 {[%emt 0:00:03]} d5 {[%emt 0:00:16]} 26. Nh6+ {
[%emt 0:00:08]} Kh8 {[%emt 0:00:09]} 27. Bxf6 {[%emt 0:00:01]} gxf6 {[%emt 0:
00:03]} 28. Nf5 {[%emt 0:00:01]} Bc5 {[%emt 0:00:04]} 29. Qh5 {[%emt 0:00:07]}
Rg8 {[%emt 0:00:02]} 30. Nh6 {[%emt 0:00:08]} Rg7 {[%emt 0:00:04]} 31. g3 {
[%emt 0:00:03]} Rg6 {[%emt 0:00:09]} 32. Rd2 {[%emt 0:00:05]} Bf8 {[%emt 0:00:
02]} 33. Nxf7+ {[%emt 0:00:14]} Qxf7 {[%emt 0:00:01]} 34. Qf5 {[%emt 0:00:01]}
Rd8 {[%emt 0:00:01]} 35. Rad1 {[%emt 0:00:01]} Rg5 {[%emt 0:00:05]} 36. Qd3 {
[%emt 0:00:01]} Rg8 {[%emt 0:00:05]} 37. a4 {[%emt 0:00:01]} Bh6 {[%emt 0:00:
01]} 38. Re2 {[%emt 0:00:01]} d4 {[%emt 0:00:01]} 39. axb5 {[%emt 0:00:05]}
axb5 {[%emt 0:00:13]} 40. Qxb5 {[%emt 0:00:02]} dxc3 {[%emt 0:00:02]} 41. Rxd8
{[%emt 0:00:02]} Rxd8 {[%emt 0:00:00]} 42. bxc3 {[%emt 0:00:02]} Qd5 {[%emt 0:
00:03]} 43. Qa6 {[%emt 0:00:04]} Qd1+ {[%emt 0:00:03]} 44. Kg2 {[%emt 0:00:01]}
Qd5+ {[%emt 0:00:02]} 45. Kg1 {[%emt 0:00:03]} Qd6 {[%emt 0:00:01]} 46. Qa2 {
[%emt 0:00:05]} Rc8 {[%emt 0:00:02]} 47. c4 {[%emt 0:00:01]} Qc6 {[%emt 0:00:
04]} 48. Rc2 {[%emt 0:00:02]} Bf8 {[%emt 0:00:02]} 49. Qb3 {[%emt 0:00:03]} Bc5
{[%emt 0:00:01]} 50. h4 {[%emt 0:00:02]} Bd4 {[%emt 0:00:02]} 51. Qd3 {[%emt 0:
00:02]} Rb8 {[%emt 0:00:04]} 52. Kh2 {[%emt 0:00:03]} Rb1 {[%emt 0:00:02]} 53.
f3 {[%emt 0:00:02]} Re1 {[%emt 0:00:06]} 54. Qf5 {[%emt 0:00:03]} Rf1 {[%emt 0:
00:06]} 55. Ra2 {[%emt 0:00:09]} Rxf3 {[%emt 0:00:02]} 56. Qh5 {[%emt 0:00:00]}
Rf2+ {[%emt 0:00:04]} 57. Rxf2 {[%emt 0:00:01]} Bxf2 {[%emt 0:00:00]} 58. Qf5 {
[%emt 0:00:02]} Bd4 {[%emt 0:00:03]} 59. h5 {[%emt 0:00:03]} Qxc4 {[%emt 0:00:
01]} 60. Qxf6+ {[%emt 0:00:01]} Kg8 {[%emt 0:00:01]} 61. Qd8+ {[%emt 0:00:01]}
Kg7 {[%emt 0:00:02]} 62. Qe7+ {[%emt 0:00:01]} Qf7 {[%emt 0:00:02]} 63. Qg5+ {
[%emt 0:00:01]} Kf8 {[%emt 0:00:02]} 64. Qd8+ {[%emt 0:00:01]} Qe8 {[%emt 0:00:
03]} 65. Qf6+ {[%emt 0:00:01]} Kg8 {[%emt 0:00:01]} 66. Qg5+ {[%emt 0:00:01]}
Kf7 {[%emt 0:00:01]} 67. Qf5+ {[%emt 0:00:01]} Ke7 {[%emt 0:00:06]} 68. Qxh7+ {
[%emt 0:00:01]} Qf7 {[%emt 0:00:00]} 69. Qh6 {[%emt 0:00:07]} Qf2+ {[%emt 0:00:
02]} 70. Kh3 {[%emt 0:00:01]} Qf1+ {[%emt 0:00:01]} 71. Kg4 {[%emt 0:00:04]}
Qe2+ {[%emt 0:00:02]} 72. Kh3 {[%emt 0:00:01]} Qf1+ {[%emt 0:00:03]} 73. Kg4 {
[%emt 0:00:01]} Qf6 {[%emt 0:00:01]} 74. Qh7+ {[%emt 0:00:02]} Ke6 {[%emt 0:00:
01]} 75. Qg8+ {[%emt 0:00:01]} Qf7 {[%emt 0:00:01]} 76. Qc8+ {[%emt 0:00:01]}
Kf6 {[%emt 0:00:02]} 77. Qf5+ {[%emt 0:00:03]} Kg7 {[%emt 0:00:01]} 78. Qg5+ {
[%emt 0:00:01]} Kh7 {[%emt 0:00:01]} 79. Kh4 {[%emt 0:00:04]} e4 {[%emt 0:00:
04]} 80. Qd2 {[%emt 0:00:05]} Bf6+ {[%emt 0:00:02]} 81. Kg4 {[%emt 0:00:00]}
Qe6+ {[%emt 0:00:05]} 82. Kf4 {[%emt 0:00:03]} Qe5+ {[%emt 0:00:01]} 83. Kg4 {
[%emt 0:00:03]} Qe6+ {[%emt 0:00:01]} 84. Kf4 {[%emt 0:00:00]} Bg5+ {[%emt 0:
00:00]} 85. Kxg5 {[%emt 0:00:03]} Qh6+ 0-1

[Event "FIDE Women World Blitz 2021"]
[Site "Warsaw"]
[Date "2021.12.29"]
[Round "9.37"]
[White "Wikar, Martyna"]
[Black "Doluhanova, Evgeniya"]
[Result "1-0"]
[ECO "C50"]
[WhiteElo "1899"]
[BlackElo "2237"]
[Annotator "NA"]
[PlyCount "53"]
[EventDate "2021.12.29"]
[EventType "swiss"]
[EventCountry "POL"]
[Tiebreak "Cut1 Buchholz"]
[SourceTitle "playchess.com"]
[Source "ChessBase"]
[SourceQuality "1"]
[TimeControl "180+2"]

1. e4 {[%emt 0:00:02]} e5 {[%emt 0:00:03]} 2. Nf3 {[%emt 0:00:01]} Nc6 {
[%emt 0:00:00]} 3. Bc4 {[%emt 0:00:01]} Bc5 {[%emt 0:00:02]} 4. d3 {[%emt 0:00:
01]} Nf6 {[%emt 0:00:03]} 5. O-O {[%emt 0:00:02]} h6 {[%emt 0:00:06]} 6. Bb3 {
[%emt 0:00:01]} O-O {[%emt 0:00:06]} 7. Nxe5 {[%emt 0:00:36]} Nxe5 {[%emt 0:00:
10]} 8. d4 {[%emt 0:00:02]} Nxe4 {[%emt 0:00:18]} 9. dxe5 {[%emt 0:00:12]} d6 {
[%emt 0:00:12]} 10. Qe2 {[%emt 0:00:36]} Bf5 {[%emt 0:00:12]} 11. Bd5 {[%emt 0:
00:19]} Ng5 {[%emt 0:01:05]} 12. Bxb7 {[%emt 0:00:02]} Rb8 {[%emt 0:00:01]} 13.
Bc6 {[%emt 0:00:02]} Rb6 {[%emt 0:00:09]} 14. Ba4 {[%emt 0:00:08]} Rb4 {
[%emt 0:00:15]} 15. Nc3 {[%emt 0:00:30]} Bd4 {[%emt 0:00:05]} 16. Bb3 {[%emt 0:
00:08]} Bxe5 {[%emt 0:00:07]} 17. f4 {[%emt 0:00:06]} Bd4+ {[%emt 0:00:03]} 18.
Kh1 {[%emt 0:00:01]} Re8 {[%emt 0:00:18]} 19. Qh5 {[%emt 0:00:11]} Rxb3 {
[%emt 0:00:11]} 20. axb3 {[%emt 0:00:03]} Bg6 {[%emt 0:00:04]} 21. Qg4 {
[%emt 0:00:03]} Ne4 {[%emt 0:00:03]} 22. Nxe4 {[%emt 0:00:03]} Rxe4 {[%emt 0:
00:03]} 23. Bd2 {[%emt 0:00:04]} Bxb2 {[%emt 0:00:05]} 24. Rae1 {[%emt 0:00:02]
} Qe7 {[%emt 0:00:02]} 25. Qf3 {[%emt 0:00:06]} Bf6 {[%emt 0:00:03]} 26. f5 {
[%emt 0:00:04]} Bxf5 {[%emt 0:00:04]} 27. Qxf5 {[%emt 0:00:02]} 1-0

[Event "FIDE Women World Blitz 2021"]
[Site "Warsaw"]
[Date "2021.12.29"]
[Round "9.38"]
[White "Utiatskaja, Irina"]
[Black "Fernandez, Maria Florencia"]
[Result "0-1"]
[ECO "B07"]
[WhiteElo "2184"]
[BlackElo "2184"]
[Annotator "NA"]
[PlyCount "50"]
[EventDate "2021.12.29"]
[EventType "swiss"]
[EventCountry "POL"]
[Tiebreak "Cut1 Buchholz"]
[SourceTitle "playchess.com"]
[Source "ChessBase"]
[SourceQuality "1"]
[TimeControl "180+2"]

1. e4 {[%emt 0:00:01]} d6 {[%emt 0:00:01]} 2. d4 {[%emt 0:00:01]} Nf6 {[%emt 0:
00:01]} 3. Nc3 {[%emt 0:00:02]} g6 {[%emt 0:00:01]} 4. Be3 {[%emt 0:00:04]} Bg7
{[%emt 0:00:01]} 5. f3 {[%emt 0:00:06]} c6 {[%emt 0:00:01]} 6. Qd2 {[%emt 0:00:
02]} b5 {[%emt 0:00:02]} 7. Bd3 {[%emt 0:00:04]} Nbd7 {[%emt 0:00:04]} 8. O-O-O
{[%emt 0:00:14]} b4 {[%emt 0:00:06]} 9. Nce2 {[%emt 0:00:01]} a5 {[%emt 0:00:
03]} 10. Kb1 {[%emt 0:00:03]} Qc7 {[%emt 0:00:04]} 11. h3 {[%emt 0:00:14]} c5 {
[%emt 0:00:18]} 12. dxc5 {[%emt 0:00:04]} Nxc5 {[%emt 0:00:01]} 13. Bb5+ {
[%emt 0:00:08]} Bd7 {[%emt 0:00:01]} 14. Nd4 {[%emt 0:00:14]} Rb8 {[%emt 0:00:
13]} 15. Bxd7+ {[%emt 0:00:04]} Nfxd7 {[%emt 0:00:02]} 16. Bh6 {[%emt 0:00:15]}
Bxh6 {[%emt 0:00:06]} 17. Qxh6 {[%emt 0:00:02]} Na4 {[%emt 0:00:03]} 18. Qg7 {
[%emt 0:00:33]} Rf8 {[%emt 0:00:04]} 19. Ka1 {[%emt 0:00:13]} Ne5 {[%emt 0:00:
20]} 20. Nge2 {[%emt 0:00:27]} Nxb2 {[%emt 0:00:40]} 21. Kxb2 {[%emt 0:00:05]}
a4 {[%emt 0:00:00]} 22. Qh6 {[%emt 0:00:20]} Nc4+ {[%emt 0:00:18]} 23. Ka1 {
[%emt 0:00:01]} b3 {[%emt 0:00:05]} 24. cxb3 {[%emt 0:00:03]} axb3 {[%emt 0:00:
01]} 25. Qc1 {[%emt 0:00:02]} b2+ {[%emt 0:00:02]} 0-1

[Event "FIDE Women World Blitz 2021"]
[Site "Warsaw"]
[Date "2021.12.29"]
[Round "9.39"]
[White "Bartel, Marta"]
[Black "Pavlidou, Ekaterini"]
[Result "0-1"]
[ECO "D03"]
[WhiteElo "2192"]
[BlackElo "2177"]
[Annotator "NA"]
[PlyCount "52"]
[EventDate "2021.12.29"]
[EventType "swiss"]
[EventCountry "POL"]
[Tiebreak "Cut1 Buchholz"]
[SourceTitle "playchess.com"]
[Source "ChessBase"]
[SourceQuality "1"]
[TimeControl "180+2"]

1. d4 {[%emt 0:00:01]} Nf6 {[%emt 0:00:02]} 2. Nf3 {[%emt 0:00:02]} e6 {
[%emt 0:00:01]} 3. Bg5 {[%emt 0:00:06]} d5 {[%emt 0:00:11]} 4. e3 {[%emt 0:00:
02]} c6 {[%emt 0:00:05]} 5. Be2 {[%emt 0:00:05]} Nbd7 {[%emt 0:00:03]} 6. O-O {
[%emt 0:00:03]} Be7 {[%emt 0:00:01]} 7. c4 {[%emt 0:00:02]} h6 {[%emt 0:00:03]}
8. Bh4 {[%emt 0:00:01]} Ne4 {[%emt 0:00:08]} 9. Bxe7 {[%emt 0:00:07]} Qxe7 {
[%emt 0:00:02]} 10. Nbd2 {[%emt 0:00:12]} f5 {[%emt 0:00:04]} 11. Qc2 {[%emt 0:
00:19]} O-O {[%emt 0:00:02]} 12. Rab1 {[%emt 0:00:05]} a5 {[%emt 0:00:28]} 13.
b3 {[%emt 0:00:33]} g5 {[%emt 0:00:47]} 14. Ne1 {[%emt 0:00:10]} e5 {[%emt 0:
00:09]} 15. cxd5 {[%emt 0:00:09]} cxd5 {[%emt 0:00:04]} 16. dxe5 {[%emt 0:00:
17]} Nxe5 {[%emt 0:00:05]} 17. Nd3 {[%emt 0:00:03]} Ng6 {[%emt 0:00:09]} 18.
Rbc1 {[%emt 0:00:15]} Be6 {[%emt 0:00:03]} 19. Nc5 {[%emt 0:00:17]} Rac8 {
[%emt 0:00:09]} 20. Ndxe4 {[%emt 0:00:15]} fxe4 {[%emt 0:00:02]} 21. Bh5 {
[%emt 0:00:27]} Nh4 {[%emt 0:00:01]} 22. g3 {[%emt 0:00:03]} Nf5 {[%emt 0:00:
17]} 23. f3 {[%emt 0:00:05]} Nxe3 {[%emt 0:00:05]} 24. Qb2 {[%emt 0:00:06]}
Nxf1 {[%emt 0:00:19]} 25. Nxe6 {[%emt 0:00:04]} Rxc1 {[%emt 0:00:13]} 26. Qxc1
{[%emt 0:00:03]} Qxe6 {[%emt 0:00:02]} 0-1

[Event "FIDE Women World Blitz 2021"]
[Site "Warsaw"]
[Date "2021.12.30"]
[Round "10.1"]
[White "Vaishali R"]
[Black "Assaubayeva, Bibisara"]
[Result "0-1"]
[ECO "B30"]
[WhiteElo "2405"]
[BlackElo "2400"]
[Annotator "NA"]
[PlyCount "90"]
[EventDate "2021.12.29"]
[EventType "swiss"]
[EventCountry "POL"]
[Tiebreak "Cut1 Buchholz"]
[SourceTitle "playchess.com"]
[Source "ChessBase"]
[SourceQuality "1"]
[TimeControl "180+2"]

1. e4 {[%emt 0:00:02]} c5 {[%emt 0:00:00]} 2. Nc3 {[%emt 0:00:02]} Nc6 {
[%emt 0:00:01]} 3. Nf3 {[%emt 0:00:02]} e5 {[%emt 0:00:01]} 4. Bc4 {[%emt 0:00:
02]} d6 {[%emt 0:00:02]} 5. d3 {[%emt 0:00:02]} Be7 {[%emt 0:00:01]} 6. O-O {
[%emt 0:00:10]} Nf6 {[%emt 0:00:02]} 7. Ng5 {[%emt 0:00:02]} O-O {[%emt 0:00:
02]} 8. f4 {[%emt 0:00:01]} h6 {[%emt 0:00:16]} 9. Nf3 {[%emt 0:00:12]} exf4 {
[%emt 0:00:03]} 10. Bxf4 {[%emt 0:00:02]} Be6 {[%emt 0:00:05]} 11. Nd5 {
[%emt 0:00:28]} Bxd5 {[%emt 0:00:05]} 12. Bxd5 {[%emt 0:00:04]} Nxd5 {[%emt 0:
00:20]} 13. exd5 {[%emt 0:00:01]} Nd4 {[%emt 0:00:07]} 14. c3 {[%emt 0:00:34]}
Nf5 {[%emt 0:00:16]} 15. Qb3 {[%emt 0:00:13]} Qd7 {[%emt 0:00:07]} 16. Rae1 {
[%emt 0:00:03]} Bf6 {[%emt 0:00:09]} 17. Re4 {[%emt 0:00:07]} Rfe8 {[%emt 0:00:
07]} 18. Rfe1 {[%emt 0:00:03]} Re7 {[%emt 0:00:07]} 19. a4 {[%emt 0:00:03]}
Rae8 {[%emt 0:00:06]} 20. Qb5 {[%emt 0:00:04]} Qd8 {[%emt 0:00:23]} 21. Qxb7 {
[%emt 0:00:41]} g5 {[%emt 0:00:01]} 22. Rxe7 {[%emt 0:00:08]} Bxe7 {[%emt 0:00:
13]} 23. Bg3 {[%emt 0:00:13]} g4 {[%emt 0:00:05]} 24. Nd2 {[%emt 0:00:01]} Bg5
{[%emt 0:00:10]} 25. Ne4 {[%emt 0:00:02]} Nxg3 {[%emt 0:00:03]} 26. hxg3 {
[%emt 0:00:02]} f5 {[%emt 0:00:03]} 27. Qxa7 {[%emt 0:00:19]} fxe4 {[%emt 0:00:
02]} 28. dxe4 {[%emt 0:00:02]} Qf6 {[%emt 0:00:08]} 29. Qd7 {[%emt 0:00:06]}
Rf8 {[%emt 0:00:01]} 30. Kh2 {[%emt 0:00:04]} h5 {[%emt 0:00:10]} 31. e5 {
[%emt 0:00:03]} dxe5 {[%emt 0:00:08]} 32. Qe6+ {[%emt 0:00:04]} Qxe6 {[%emt 0:
00:03]} 33. dxe6 {[%emt 0:00:01]} Bf6 {[%emt 0:00:07]} 34. b4 {[%emt 0:00:02]}
cxb4 {[%emt 0:00:22]} 35. cxb4 {[%emt 0:00:01]} Ra8 {[%emt 0:00:06]} 36. a5 {
[%emt 0:00:03]} Kf8 {[%emt 0:00:01]} 37. Rf1 {[%emt 0:00:04]} Ke7 {[%emt 0:00:
01]} 38. Rf5 {[%emt 0:00:01]} Kxe6 {[%emt 0:00:01]} 39. Rxh5 {[%emt 0:00:01]}
Rb8 {[%emt 0:00:02]} 40. a6 {[%emt 0:00:03]} Rxb4 {[%emt 0:00:01]} 41. Rh7 {
[%emt 0:00:03]} Ra4 {[%emt 0:00:01]} 42. a7 {[%emt 0:00:01]} e4 {[%emt 0:00:01]
} 43. Rb7 {[%emt 0:00:02]} Bd4 {[%emt 0:00:03]} 44. Rb1 {[%emt 0:00:02]} Rxa7 {
[%emt 0:00:01]} 45. Re1 {[%emt 0:00:01]} Rh7# {[%emt 0:00:02]} 0-1